bitfinex/quotes_BTCUSD_20241014
["timestamp","ask_amount","ask_price","bid_price","bid_amount"]
[1728868418107,0.001819,62778.0,62777.0,0.65269575]
[1728868419384,0.001819,62778.0,62777.0,0.6365235]
[1728868421557,0.000819,62778.0,62777.0,0.6335235]
[1728868421801,0.000819,62778.0,62777.0,0.6315235]
[1728868422941,0.000819,62778.0,62777.0,0.6345235]
[1728868432941,0.000819,62778.0,62777.0,0.52210008]
[1728868434470,0.000819,62778.0,62777.0,0.26517607]
[1728868435805,0.000819,62778.0,62777.0,0.18947607]
[1728868435992,0.000819,62778.0,62777.0,0.18647607]
[1728868437100,0.000819,62778.0,62777.0,0.18347607]
[1728868437320,0.002819,62778.0,62777.0,0.18347607]
[1728868437757,0.003819,62778.0,62777.0,0.18347607]
[1728868438247,0.007819,62778.0,62777.0,0.18447607]
[1728868438457,0.007819,62778.0,62777.0,0.18347607]
[1728868438458,0.000819,62778.0,62777.0,0.18347607]
[1728868438673,0.010819,62778.0,62777.0,0.18447607]
[1728868438897,0.010819,62778.0,62777.0,0.02518207]
[1728868439117,0.010819,62778.0,62777.0,0.02418207]
[1728868439118,0.005819,62778.0,62777.0,0.02418207]
[1728868439553,0.005819,62778.0,62775.0,0.159298]
[1728868439772,0.005819,62778.0,62777.0,0.0241688]
[1728868439988,0.005819,62778.0,62777.0,0.02417503]
[1728868440424,0.005819,62778.0,62777.0,0.18346903]
[1728868440638,0.005819,62778.0,62777.0,0.02417503]
[1728868440869,0.010819,62778.0,62777.0,0.02517503]
[1728868441085,0.005819,62778.0,62777.0,0.18346903]
[1728868441541,0.015819,62778.0,62777.0,0.18446903]
[1728868441757,0.015819,62778.0,62777.0,0.02517503]
[1728868441984,0.010819,62778.0,62777.0,0.02517503]
[1728868442205,0.17511,62778.0,62777.0,0.02517503]
[1728868443557,0.52803401,62778.0,62777.0,0.001]
[1728868443790,0.74959047,62778.0,62777.0,0.001]
[1728868444194,0.82117652,62778.0,62777.0,0.001]
[1728868444471,0.79229448,62778.0,62777.0,0.001]
[1728868444691,0.79229448,62778.0,62768.0,0.001638]
[1728868444692,0.1662,62776.0,62768.0,0.001638]
[1728868444869,0.159314,62769.0,62768.0,0.001638]
[1728868446005,0.182314,62769.0,62768.0,0.001638]
[1728868446228,0.51803801,62769.0,62768.0,0.001638]
[1728868446452,0.53203801,62769.0,62768.0,0.002638]
[1728868446711,0.55699796,62769.0,62768.0,0.002638]
[1728868447670,0.56999796,62769.0,62768.0,0.002638]
[1728868448343,0.30657395,62769.0,62768.0,0.002638]
[1728868448579,0.21127395,62769.0,62768.0,0.002638]
[1728868451229,0.21127395,62769.0,62768.0,0.02701016]
[1728868452198,0.05195995,62769.0,62768.0,0.02701016]
[1728868452446,0.027,62769.0,62768.0,0.002638]
[1728868452689,0.027,62769.0,62768.0,0.02701016]
[1728868455367,0.05195812,62769.0,62768.0,0.02701016]
[1728868456598,0.05195812,62769.0,62768.0,0.002638]
[1728868456835,0.05195812,62769.0,62768.0,0.0270307]
[1728868457367,0.05195812,62769.0,62768.0,0.1036307]
[1728868457614,0.05195812,62769.0,62768.0,0.2629467]
[1728868459859,0.03795812,62769.0,62768.0,0.2619467]
[1728868460096,0.03795812,62769.0,62768.0,0.3581467]
[1728868460582,0.02495812,62769.0,62768.0,0.3581467]
[1728868460824,0.000819,62778.0,62774.0,0.318603]
[1728868461073,0.23772356,62776.0,62775.0,0.328299]
[1728868461329,0.02495604,62777.0,62776.0,0.159296]
[1728868461816,0.02495604,62777.0,62776.0,0.29608105]
[1728868462297,0.007819,62778.0,62776.0,0.29608105]
[1728868462993,0.007819,62778.0,62776.0,0.13778505]
[1728868463227,0.007819,62778.0,62776.0,0.29708005]
[1728868463568,0.000819,62778.0,62776.0,0.29708005]
[1728868463907,0.006,62777.0,62776.0,0.29808005]
[1728868464386,0.000819,62778.0,62777.0,0.159294]
[1728868464618,0.014819,62778.0,62777.0,0.159294]
[1728868464861,0.014819,62778.0,62777.0,0.18361779]
[1728868465088,0.007819,62778.0,62777.0,0.18361779]
[1728868465320,0.000819,62778.0,62777.0,0.18361779]
[1728868467210,0.000819,62778.0,62777.0,0.26041779]
[1728868467441,0.007819,62778.0,62777.0,0.26041779]
[1728868468136,0.014819,62778.0,62777.0,0.53825093]
[1728868468364,0.014819,62778.0,62777.0,0.63216522]
[1728868468617,0.014819,62778.0,62777.0,0.5197418]
[1728868469084,0.014819,62778.0,62777.0,0.63216522]
[1728868469768,0.014819,62778.0,62777.0,0.5197418]
[1728868470004,0.014819,62778.0,62777.0,0.63216522]
[1728868470236,0.014819,62778.0,62777.0,0.5197418]
[1728868470451,0.014819,62778.0,62777.0,0.63216522]
[1728868470890,0.014819,62778.0,62777.0,0.5197418]
[1728868471166,0.014819,62778.0,62777.0,0.63216522]
[1728868471368,0.014819,62778.0,62777.0,0.5197418]
[1728868471590,0.007819,62778.0,62777.0,0.5187418]
[1728868471813,0.000819,62778.0,62777.0,0.5197418]
[1728868472273,0.000819,62778.0,62777.0,0.5187418]
[1728868472941,0.000819,62778.0,62777.0,0.35751779]
[1728868473675,0.000819,62778.0,62777.0,0.36051779]
[1728868473889,0.000819,62778.0,62777.0,0.36251779]
[1728868474131,0.000819,62778.0,62777.0,0.35751779]
[1728868474377,0.005819,62778.0,62777.0,0.35851779]
[1728868474609,0.006819,62778.0,62777.0,0.35851779]
[1728868474850,0.006819,62778.0,62777.0,0.35951779]
[1728868475082,0.005819,62778.0,62777.0,0.35851779]
[1728868475308,0.010819,62778.0,62777.0,0.35851779]
[1728868476275,0.010819,62778.0,62777.0,0.26141779]
[1728868477587,0.010819,62778.0,62777.0,0.18461779]
[1728868484734,0.010819,62778.0,62777.0,0.5159418]
[1728868484984,0.010819,62778.0,62777.0,0.62836522]
[1728868485482,0.010819,62778.0,62777.0,0.5159418]
[1728868485691,0.010819,62778.0,62777.0,0.62836522]
[1728868485935,0.005819,62778.0,62777.0,0.62836522]
[1728868486421,0.009819,62778.0,62777.0,0.5159418]
[1728868486694,0.000819,62778.0,62777.0,0.5149418]
[1728868487123,0.000819,62778.0,62777.0,0.5179418]
[1728868487609,0.000819,62778.0,62777.0,0.62736522]
[1728868488302,0.000819,62778.0,62777.0,0.63436522]
[1728868488518,0.000819,62778.0,62777.0,0.63136522]
[1728868488749,0.000819,62778.0,62777.0,0.63236522]
[1728868488948,0.000819,62778.0,62777.0,0.5199418]
[1728868489165,0.000819,62778.0,62777.0,0.63236522]
[1728868489603,0.000819,62778.0,62777.0,0.62836522]
[1728868490049,0.000819,62778.0,62777.0,0.5179418]
[1728868490250,0.000819,62778.0,62777.0,0.63036522]
[1728868490484,0.000819,62778.0,62777.0,0.63236522]
[1728868492858,0.000819,62778.0,62777.0,0.63936522]
[1728868494324,0.000819,62778.0,62777.0,0.63736522]
[1728868495018,0.000819,62778.0,62777.0,0.63236522]
[1728868495250,0.000819,62778.0,62777.0,0.63736522]
[1728868495503,0.000819,62778.0,62777.0,0.5249418]
[1728868495747,0.000819,62778.0,62777.0,0.74978864]
[1728868497927,0.000819,62778.0,62777.0,0.75178864]
[1728868498815,0.000819,62778.0,62777.0,0.74978864]
[1728868500989,0.000819,62778.0,62777.0,0.63736522]
[1728868501213,0.000819,62778.0,62777.0,0.74978864]
[1728868501426,0.000819,62778.0,62777.0,0.74478864]
[1728868501940,0.000819,62778.0,62777.0,0.63236522]
[1728868502165,0.000819,62778.0,62777.0,0.74478864]
[1728868502391,0.000819,62778.0,62777.0,0.63236522]
[1728868502611,0.000819,62778.0,62777.0,0.74478864]
[1728868502825,0.000819,62778.0,62777.0,0.63236522]
[1728868503035,0.000819,62778.0,62777.0,0.74478864]
[1728868503254,0.000819,62778.0,62777.0,0.63236522]
[1728868504108,0.000819,62778.0,62777.0,0.74478864]
[1728868508069,0.000819,62778.0,62777.0,0.79749416]
[1728868508557,0.000819,62778.0,62777.0,0.74978864]
[1728868508981,0.000819,62778.0,62777.0,0.82134692]
[1728868509712,0.000819,62778.0,62777.0,0.99776258]
[1728868511054,0.000819,62778.0,62777.0,1.00981866]
[1728868511922,0.000819,62778.0,62777.0,0.9381692]
[1728868512602,0.000819,62778.0,62777.0,1.27000839]
[1728868512818,0.000819,62778.0,62777.0,1.15259262]
[1728868513505,0.000819,62778.0,62777.0,1.15059262]
[1728868513961,0.000819,62778.0,62777.0,1.15259262]
[1728868514202,0.000819,62788.0,62787.0,0.159268]
[1728868514450,0.000819,62788.0,62787.0,0.7368308]
[1728868515859,0.000819,62788.0,62787.0,0.7378308]
[1728868516109,0.006819,62788.0,62787.0,0.7378308]
[1728868516600,0.006819,62788.0,62787.0,0.34598396]
[1728868516866,0.006819,62788.0,62787.0,0.45840738]
[1728868517623,0.166085,62788.0,62787.0,0.02549195]
[1728868517858,0.171085,62788.0,62787.0,0.02649195]
[1728868518081,0.171085,62788.0,62787.0,0.002]
[1728868518082,0.19603497,62788.0,62787.0,0.002]
[1728868518587,0.19603497,62788.0,62787.0,0.0264544]
[1728868518828,0.19603497,62788.0,62787.0,0.001]
[1728868518829,0.19003497,62788.0,62787.0,0.001]
[1728868519068,0.19303497,62788.0,62787.0,0.0254544]
[1728868519311,0.19303497,62788.0,62787.0,0.001]
[1728868519529,0.03376897,62788.0,62787.0,0.001]
[1728868519774,0.03376897,62788.0,62783.0,0.159277]
[1728868520002,0.04276897,62788.0,62787.0,0.001]
[1728868520462,0.20203497,62788.0,62787.0,0.0254544]
[1728868520680,0.20203497,62788.0,62787.0,0.001]
[1728868521091,0.21103497,62788.0,62787.0,0.002]
[1728868521351,0.21103497,62788.0,62787.0,0.001]
[1728868521352,0.20203497,62788.0,62787.0,0.001]
[1728868521569,0.21103497,62788.0,62787.0,0.001]
[1728868521869,0.37225898,62788.0,62787.0,0.001]
[1728868522122,0.62960901,62788.0,62787.0,0.001]
[1728868522367,0.63660901,62788.0,62787.0,0.001]
[1728868522613,0.88660901,62788.0,62787.0,0.001]
[1728868522825,0.87860901,62788.0,62787.0,0.001]
[1728868523095,1.03997872,62788.0,62787.0,0.001]
[1728868523312,0.159306,62772.0,62771.0,0.23772356]
[1728868523744,0.177,62774.0,62768.0,0.001638]
[1728868523935,0.159306,62773.0,62768.0,0.001638]
[1728868524833,0.003,62772.0,62768.0,0.001638]
[1728868525045,0.159308,62772.0,62768.0,0.001638]
[1728868525503,0.1842638,62772.0,62768.0,0.001638]
[1728868526135,0.0249558,62772.0,62768.0,0.001638]
[1728868526773,0.0249558,62772.0,62768.0,0.320269]
[1728868526986,0.0279558,62772.0,62770.0,0.15931]
[1728868527195,0.0279558,62772.0,62769.0,0.159314]
[1728868527409,0.0279558,62772.0,62768.0,0.160953]
[1728868527852,0.0279558,62772.0,62769.0,0.159314]
[1728868528058,0.0309558,62772.0,62768.0,0.160954]
[1728868528494,0.0309558,62772.0,62768.0,0.001638]
[1728868528712,0.0279558,62772.0,62769.0,0.159313]
[1728868528931,0.0249558,62772.0,62769.0,0.159314]
[1728868529161,0.0289558,62772.0,62769.0,0.159314]
[1728868529388,0.467114,62769.0,62768.0,0.001638]
[1728868529620,0.62833801,62769.0,62768.0,0.001638]
[1728868531694,0.64233801,62769.0,62768.0,0.001638]
[1728868531936,0.65333801,62769.0,62768.0,0.001638]
[1728868532399,0.63933801,62769.0,62768.0,0.001638]
[1728868532611,0.62833801,62769.0,62768.0,0.001638]
[1728868532831,0.64233801,62769.0,62768.0,0.001638]
[1728868533261,0.62833801,62769.0,62768.0,0.001638]
[1728868533713,0.64233801,62769.0,62768.0,0.001638]
[1728868533928,0.287314,62769.0,62768.0,0.001638]
[1728868534139,0.014,62769.0,62768.0,0.001638]
[1728868534359,0.287314,62769.0,62768.0,0.001638]
[1728868535236,0.32127287,62769.0,62768.0,0.001638]
[1728868535455,0.30727287,62769.0,62768.0,0.001638]
[1728868535665,0.32127287,62769.0,62768.0,0.001638]
[1728868535929,0.33527287,62769.0,62768.0,0.001638]
[1728868536371,0.32127287,62769.0,62768.0,0.001638]
[1728868536598,0.33527287,62769.0,62768.0,0.001638]
[1728868536819,0.32127287,62769.0,62768.0,0.001638]
[1728868537031,0.33527287,62769.0,62768.0,0.001638]
[1728868541305,0.30727287,62769.0,62768.0,0.001638]
[1728868541736,0.50149688,62769.0,62768.0,0.001638]
[1728868542181,0.46253801,62769.0,62768.0,0.001638]
[1728868542400,0.44853801,62769.0,62768.0,0.001638]
[1728868542822,0.46253801,62769.0,62768.0,0.001638]
[1728868543539,0.47653801,62769.0,62768.0,0.001638]
[1728868543764,0.46253801,62769.0,62768.0,0.001638]
[1728868544227,0.47653801,62769.0,62768.0,0.001638]
[1728868544453,0.44853801,62769.0,62768.0,0.001638]
[1728868544673,0.46253801,62769.0,62768.0,0.001638]
[1728868544893,0.47653801,62769.0,62768.0,0.001638]
[1728868545116,0.46253801,62769.0,62768.0,0.001638]
[1728868545364,0.50149777,62769.0,62768.0,0.001638]
[1728868545774,0.48749777,62769.0,62768.0,0.001638]
[1728868545993,0.50149777,62769.0,62768.0,0.001638]
[1728868546702,0.48749777,62769.0,62768.0,0.001638]
[1728868547156,0.50149777,62769.0,62768.0,0.001638]
[1728868547382,0.48749777,62769.0,62768.0,0.001638]
[1728868547620,0.65729777,62769.0,62768.0,0.001638]
[1728868547846,0.83266748,62769.0,62768.0,0.001638]
[1728868548080,0.83466748,62769.0,62768.0,0.001638]
[1728868548302,0.80666748,62769.0,62768.0,0.001638]
[1728868548524,0.82066748,62769.0,62768.0,0.001638]
[1728868548735,1.08466748,62769.0,62768.0,0.001638]
[1728868548957,1.07066748,62769.0,62768.0,0.001638]
[1728868549394,1.08266748,62769.0,62768.0,0.001638]
[1728868549823,1.06866748,62769.0,62768.0,0.001638]
[1728868550268,1.08266748,62769.0,62768.0,0.001638]
[1728868550521,1.05466748,62769.0,62768.0,0.001638]
[1728868550768,0.89329777,62769.0,62768.0,0.001638]
[1728868550997,0.90729777,62769.0,62768.0,0.001638]
[1728868551220,0.92129777,62769.0,62768.0,0.001638]
[1728868551661,0.90729777,62769.0,62768.0,0.001638]
[1728868551897,0.89329777,62769.0,62768.0,0.001638]
[1728868552113,0.90729777,62769.0,62768.0,0.001638]
[1728868552345,1.04370772,62769.0,62768.0,0.001638]
[1728868552595,1.02970772,62769.0,62768.0,0.001638]
[1728868553111,1.04370772,62769.0,62768.0,0.001638]
[1728868553371,1.02970772,62769.0,62768.0,0.001638]
[1728868553629,0.88233801,62769.0,62768.0,0.001638]
[1728868554133,0.89833801,62769.0,62768.0,0.001638]
[1728868554412,0.89633801,62769.0,62768.0,0.001638]
[1728868555425,0.92129911,62769.0,62768.0,0.001638]
[1728868555715,0.92329911,62769.0,62768.0,0.001638]
[1728868556134,0.92129911,62769.0,62768.0,0.001638]
[1728868557317,0.84319911,62769.0,62768.0,0.001638]
[1728868557767,1.25149911,62769.0,62768.0,0.001638]
[1728868558690,1.00149911,62769.0,62768.0,0.001638]
[1728868560816,0.99649911,62769.0,62768.0,0.001638]
[1728868561068,1.00149911,62769.0,62768.0,0.001638]
[1728868562218,0.97653801,62769.0,62768.0,0.001638]
[1728868563458,0.96253801,62769.0,62768.0,0.001638]
[1728868563687,0.97653801,62769.0,62768.0,0.001638]
[1728868563927,0.97153801,62769.0,62768.0,0.001638]
[1728868564169,0.94853801,62769.0,62768.0,0.001638]
[1728868564398,0.97653801,62769.0,62768.0,0.001638]
[1728868564873,0.96253801,62769.0,62768.0,0.001638]
[1728868565335,1.00149861,62769.0,62768.0,0.001638]
[1728868565784,0.98749861,62769.0,62768.0,0.001638]
[1728868566279,1.00149861,62769.0,62768.0,0.001638]
[1728868566507,0.98749861,62769.0,62768.0,0.001638]
[1728868566954,1.00149861,62769.0,62768.0,0.001638]
[1728868567195,1.04924594,62769.0,62768.0,0.001638]
[1728868567436,1.04424594,62769.0,62768.0,0.001638]
[1728868568139,0.99299861,62769.0,62768.0,0.001638]
[1728868568372,1.04574594,62769.0,62768.0,0.001638]
[1728868568595,0.99799861,62769.0,62768.0,0.001638]
[1728868569069,1.04578292,62769.0,62768.0,0.001638]
[1728868569295,1.06961961,62769.0,62768.0,0.001638]
[1728868569534,0.8317746,62769.0,62768.0,0.001638]
[1728868569792,0.8795661,62769.0,62768.0,0.001638]
[1728868570034,0.8317746,62769.0,62768.0,0.001638]
[1728868570283,0.9033956,62769.0,62768.0,0.001638]
[1728868570733,0.8753956,62769.0,62768.0,0.001638]
[1728868570950,0.90347305,62769.0,62768.0,0.001638]
[1728868571174,0.8317746,62769.0,62768.0,0.001638]
[1728868571394,0.90348505,62769.0,62768.0,0.001638]
[1728868571612,0.88948505,62769.0,62768.0,0.001638]
[1728868571831,0.8317746,62769.0,62768.0,0.001638]
[1728868572047,0.90348501,62769.0,62768.0,0.001638]
[1728868572313,0.792814,62769.0,62768.0,0.001638]
[1728868572733,0.90241194,62769.0,62768.0,0.001638]
[1728868573476,0.806814,62769.0,62768.0,0.001638]
[1728868574208,0.92631143,62769.0,62768.0,0.001638]
[1728868574449,0.806814,62769.0,62768.0,0.001638]
[1728868574683,0.90249713,62769.0,62768.0,0.001638]
[1728868575156,0.95127077,62769.0,62768.0,0.001638]
[1728868575626,0.95142379,62769.0,62768.0,0.001638]
[1728868577455,0.80877334,62769.0,62768.0,0.001638]
[1728868577697,0.80877334,62769.0,62768.0,0.079738]
[1728868577925,0.90449112,62769.0,62768.0,0.079738]
[1728868578151,0.92842379,62769.0,62768.0,0.079738]
[1728868579077,0.79477334,62769.0,62768.0,0.079738]
[1728868579527,0.91342379,62769.0,62768.0,0.079738]
[1728868579973,0.92742379,62769.0,62768.0,0.079738]
[1728868580493,1.1166478,62769.0,62768.0,0.001638]
[1728868580728,1.32090299,62769.0,62768.0,0.001638]
[1728868580954,1.17079735,62769.0,62768.0,0.001638]
[1728868581429,1.15679735,62769.0,62768.0,0.001638]
[1728868581661,1.30516706,62769.0,62768.0,0.001638]
[1728868581909,1.56916706,62769.0,62768.0,0.001638]
[1728868582141,1.68171148,62769.0,62768.0,0.001638]
[1728868582368,1.64275214,62769.0,62768.0,0.001638]
[1728868582611,1.81828025,62769.0,62768.0,0.001638]
[1728868582842,1.67075214,62769.0,62768.0,0.001638]
[1728868583301,1.64275214,62769.0,62768.0,0.001638]
[1728868583528,1.65675214,62769.0,62768.0,0.001638]
[1728868583750,1.67075214,62769.0,62768.0,0.001638]
[1728868583973,1.65675214,62769.0,62768.0,0.001638]
[1728868584445,1.67075214,62769.0,62768.0,0.001638]
[1728868584884,1.65675214,62769.0,62768.0,0.001638]
[1728868585177,1.66863521,62769.0,62768.0,0.001638]
[1728868585428,1.70759878,62769.0,62768.0,0.001638]
[1728868585650,1.67959878,62769.0,62768.0,0.001638]
[1728868585882,1.74824295,62769.0,62768.0,0.001638]
[1728868586109,1.76224295,62769.0,62768.0,0.001638]
[1728868586555,1.74824295,62769.0,62768.0,0.001638]
[1728868587009,1.76224295,62769.0,62768.0,0.001638]
[1728868587477,1.60087324,62769.0,62768.0,0.001638]
[1728868590706,1.58687324,62769.0,62768.0,0.001638]
[1728868590930,1.60087324,62769.0,62768.0,0.001638]
[1728868591146,1.76212033,62769.0,62768.0,0.001638]
[1728868591844,1.74812033,62769.0,62768.0,0.001638]
[1728868592072,1.90949004,62769.0,62768.0,0.001638]
[1728868592303,1.87052647,62769.0,62768.0,0.001638]
[1728868592529,1.88534547,62769.0,62768.0,0.001638]
[1728868592782,1.89934547,62769.0,62768.0,0.001638]
[1728868593454,1.73809838,62769.0,62768.0,0.001638]
[1728868595087,1.57672867,62769.0,62768.0,0.001638]
[1728868595313,1.60169171,62769.0,62768.0,0.001638]
[1728868596711,1.52469171,62769.0,62768.0,0.001638]
[1728868596935,1.41800864,62769.0,62768.0,0.001638]
[1728868597157,1.22582005,62769.0,62768.0,0.181438]
[1728868597497,1.12082005,62769.0,62768.0,0.181438]
[1728868597745,0.87082005,62769.0,62768.0,0.181438]
[1728868598511,0.9045797,62769.0,62768.0,0.181438]
[1728868598742,0.68159604,62769.0,62768.0,0.181438]
[1728868598976,0.69559604,62769.0,62768.0,0.181438]
[1728868599201,0.70959604,62769.0,62768.0,0.181438]
[1728868599437,0.75735569,62769.0,62768.0,0.181438]
[1728868599665,0.72935569,62769.0,62768.0,0.181438]
[1728868599894,0.71859604,62769.0,62768.0,0.181438]
[1728868600117,0.83159604,62769.0,62768.0,0.181438]
[1728868600348,0.80459604,62769.0,62768.0,0.181438]
[1728868600602,0.81859604,62769.0,62768.0,0.181438]
[1728868600823,0.83259604,62769.0,62768.0,0.181438]
[1728868601508,0.83259604,62769.0,62768.0,0.18751]
[1728868601771,0.81859604,62769.0,62768.0,0.18751]
[1728868602008,0.80459604,62769.0,62768.0,0.18751]
[1728868602232,0.807633,62769.0,62768.0,0.18751]
[1728868602453,0.793633,62769.0,62768.0,0.18751]
[1728868603152,0.807633,62769.0,62768.0,0.18751]
[1728868605284,0.832592,62769.0,62768.0,0.18751]
[1728868608650,0.86633811,62769.0,62768.0,0.18751]
[1728868609110,0.85233811,62769.0,62768.0,0.18751]
[1728868609357,0.86533811,62769.0,62768.0,0.18751]
[1728868609581,0.86633811,62769.0,62768.0,0.18751]
[1728868610038,0.818592,62769.0,62768.0,0.18751]
[1728868611627,0.88033811,62769.0,62768.0,0.18751]
[1728868611864,0.832592,62769.0,62768.0,0.18751]
[1728868612329,0.807633,62769.0,62768.0,0.18751]
[1728868615478,0.83259193,62769.0,62768.0,0.18751]
[1728868616576,0.55377793,62769.0,62768.0,0.18751]
[1728868616801,0.55377793,62769.0,62768.0,0.346826]
[1728868617309,0.55377793,62769.0,62768.0,0.36787047]
[1728868617754,0.53977793,62769.0,62768.0,0.36787047]
[1728868617973,0.55377793,62769.0,62768.0,0.36787047]
[1728868618193,0.53977793,62769.0,62768.0,0.36787047]
[1728868618634,0.54077793,62769.0,62768.0,0.36787047]
[1728868619086,0.52677793,62769.0,62768.0,0.36787047]
[1728868619309,0.52777793,62769.0,62768.0,0.36787047]
[1728868619896,0.52777793,62769.0,62768.0,0.53486097]
[1728868620248,0.02777793,62769.0,62768.0,0.53486097]
[1728868622167,0.002819,62769.0,62768.0,0.53486097]
[1728868622412,0.001819,62769.0,62768.0,0.53486097]
[1728868622832,0.002819,62769.0,62768.0,0.69608498]
[1728868623987,0.001819,62769.0,62768.0,0.69608498]
[1728868624204,0.000819,62769.0,62768.0,0.36787047]
[1728868624424,0.001819,62769.0,62768.0,0.36887047]
[1728868624872,0.001819,62769.0,62768.0,0.37187047]
[1728868625099,0.001819,62769.0,62768.0,0.53786097]
[1728868625304,0.000819,62769.0,62768.0,0.53686097]
[1728868625560,0.000819,62769.0,62768.0,0.53886097]
[1728868625975,0.000819,62769.0,62768.0,0.69608498]
[1728868626217,0.000819,62769.0,62768.0,0.69708498]
[1728868627187,0.000819,62769.0,62768.0,0.69908498]
[1728868627420,0.000819,62769.0,62768.0,0.73002498]
[1728868627857,0.000819,62769.0,62768.0,0.73302498]
[1728868628081,0.000819,62769.0,62768.0,0.73002498]
[1728868628283,0.000819,62769.0,62768.0,0.72802498]
[1728868628524,0.002819,62769.0,62768.0,0.73402498]
[1728868630549,0.002819,62769.0,62768.0,0.90601548]
[1728868630780,0.000819,62778.0,62777.0,0.331994]
[1728868631010,0.000819,62778.0,62777.0,0.69714851]
[1728868631246,0.000819,62778.0,62777.0,0.71799181]
[1728868631470,0.000819,62778.0,62777.0,0.71999181]
[1728868631691,0.23772356,62782.0,62780.0,0.005]
[1728868631920,0.23772356,62782.0,62781.0,0.68733751]
[1728868632133,0.000819,62788.0,62787.0,0.159268]
[1728868632391,0.000819,62788.0,62787.0,0.50915091]
[1728868632633,0.000819,62788.0,62787.0,0.67614141]
[1728868634797,0.000819,62788.0,62787.0,0.67914141]
[1728868635081,0.000819,62788.0,62787.0,0.72695355]
[1728868635278,0.000819,62788.0,62787.0,0.72795355]
[1728868635496,0.000819,62788.0,62787.0,0.73195355]
[1728868636221,0.000819,62788.0,62787.0,0.73895355]
[1728868636454,0.000819,62788.0,62787.0,0.73295355]
[1728868636686,0.000819,62788.0,62787.0,0.73795355]
[1728868636904,0.000819,62788.0,62787.0,0.73395355]
[1728868637144,0.000819,62788.0,62787.0,0.72895355]
[1728868637373,0.002819,62788.0,62787.0,0.74295355]
[1728868637621,0.001819,62788.0,62787.0,0.73595355]
[1728868637862,0.000819,62788.0,62787.0,0.69701355]
[1728868638119,0.001819,62788.0,62787.0,0.70401355]
[1728868638819,0.000819,62788.0,62787.0,0.69701355]
[1728868639534,0.001819,62788.0,62787.0,0.70501355]
[1728868639987,0.000819,62788.0,62787.0,0.69701355]
[1728868640221,0.000819,62788.0,62787.0,0.69414141]
[1728868640222,0.002819,62788.0,62787.0,0.69414141]
[1728868642140,0.002819,62788.0,62787.0,0.68914141]
[1728868642383,0.002819,62788.0,62787.0,0.69414141]
[1728868643881,0.002819,62788.0,62787.0,0.68914141]
[1728868647035,0.002819,62788.0,62787.0,0.3609269]
[1728868647265,0.002819,62788.0,62787.0,0.5279174]
[1728868648182,0.002819,62788.0,62787.0,0.3609269]
[1728868648830,0.002819,62788.0,62787.0,0.2698269]
[1728868649977,0.002819,62788.0,62787.0,0.1930269]
[1728868650447,0.162085,62788.0,62787.0,0.0337589]
[1728868650916,0.162085,62788.0,62787.0,0.013]
[1728868652050,0.161085,62788.0,62787.0,0.006]
[1728868652277,0.161085,62788.0,62778.0,0.001638]
[1728868652278,0.159278,62783.0,62778.0,0.001638]
[1728868652708,0.159278,62783.0,62779.0,0.01731041]
[1728868653408,0.166279,62783.0,62779.0,0.01731041]
[1728868653627,0.173279,62783.0,62779.0,0.01731041]
[1728868653847,0.166279,62783.0,62779.0,0.01731041]
[1728868654068,0.318563,62782.0,62779.0,0.01831041]
[1728868654421,0.159286,62780.0,62779.0,0.01831041]
[1728868654641,0.159286,62780.0,62779.0,0.001]
[1728868654839,0.159286,62780.0,62779.0,0.01831041]
[1728868655197,0.159286,62780.0,62779.0,0.002]
[1728868655424,0.18423862,62780.0,62779.0,0.001]
[1728868655676,0.18423862,62780.0,62778.0,0.001638]
[1728868655677,0.02495262,62780.0,62778.0,0.001638]
[1728868655886,0.159288,62779.0,62778.0,0.001638]
[1728868657160,0.170288,62779.0,62778.0,0.003638]
[1728868658439,0.165288,62779.0,62778.0,0.002638]
[1728868658646,0.162288,62779.0,62778.0,0.001638]
[1728868658857,0.166288,62779.0,62778.0,0.001638]
[1728868659066,0.163288,62779.0,62778.0,0.001638]
[1728868659274,0.168288,62779.0,62778.0,0.002638]
[1728868659496,0.40201156,62779.0,62778.0,0.002638]
[1728868659699,0.164288,62779.0,62778.0,0.002638]
[1728868659900,0.170288,62779.0,62778.0,0.003638]
[1728868660108,0.165288,62779.0,62778.0,0.002638]
[1728868660317,0.159288,62779.0,62778.0,0.001638]
[1728868660534,0.159288,62779.0,62778.0,0.002638]
[1728868660759,0.172288,62779.0,62778.0,0.002638]
[1728868661640,0.184288,62779.0,62778.0,0.003638]
[1728868662032,0.159288,62779.0,62778.0,0.001638]
[1728868662299,0.183288,62779.0,62778.0,0.003638]
[1728868662745,0.183288,62779.0,62778.0,0.002638]
[1728868662746,0.34451201,62779.0,62778.0,0.002638]
[1728868662971,0.32051201,62779.0,62778.0,0.001638]
[1728868663224,0.34651201,62779.0,62778.0,0.003638]
[1728868665431,0.37146642,62779.0,62778.0,0.003638]
[1728868666862,0.05095441,62779.0,62778.0,0.003638]
[1728868667114,0.21024241,62779.0,62778.0,0.003638]
[1728868667610,0.05095441,62779.0,62778.0,0.02112282]
[1728868667845,0.05095441,62779.0,62778.0,0.003638]
[1728868668303,0.05095441,62779.0,62778.0,0.02111513]
[1728868668526,0.05095441,62779.0,62778.0,0.003638]
[1728868668760,0.05095441,62779.0,62778.0,0.02111513]
[1728868668960,0.37146642,62779.0,62778.0,0.003638]
[1728868672438,0.34651201,62779.0,62778.0,0.003638]
[1728868675294,0.37146644,62779.0,62778.0,0.003638]
[1728868682439,0.34651201,62779.0,62778.0,0.003638]
[1728868683578,0.026819,62779.0,62778.0,0.179138]
[1728868684058,0.026819,62779.0,62778.0,0.35590038]
[1728868684512,0.013819,62779.0,62778.0,0.35490038]
[1728868685167,0.026819,62779.0,62778.0,0.35590038]
[1728868685598,0.03877188,62779.0,62778.0,0.35490038]
[1728868685816,0.03677188,62779.0,62778.0,0.35490038]
[1728868686031,0.04977188,62779.0,62778.0,0.35590038]
[1728868686256,0.04977188,62779.0,62778.0,0.35490038]
[1728868686712,0.06077188,62779.0,62778.0,0.35590038]
[1728868687158,0.035819,62779.0,62778.0,0.51712439]
[1728868687621,0.024819,62779.0,62778.0,0.51612439]
[1728868688062,0.030819,62779.0,62778.0,0.51712439]